[Event "Titled Tuesday Blitz December 20 Early 2022"]
[White "Rostolis, Riccardo"]
[Black "Ekat, Michael"]
[WhiteFideId "819948"]
[BlackFideId "4689801"]
[WhiteElo "1968"]
[BlackElo "2051"]
[Result "1/2-1/2"]
[Round "09"]
[TimeControl "180+2"]
[Date "2022.12.20"]
[WhiteClock "0:00:10"]
[BlackClock "0:00:23"]

1. e4 {[%clk 0:03:00]}  c6 {[%clk 0:02:59]} 2. d4 {[%clk 0:03:00]}  d5 {[%clk 0:02:59]} 3. exd5 {[%clk 0:03:01]}  cxd5 {[%clk 0:02:59]} 4. c4 {[%clk 0:03:01]}  e6 {[%clk 0:02:59]} 5. Nc3 {[%clk 0:03:01]}  Nf6 {[%clk 0:02:59]} 6. Nf3 {[%clk 0:03:00]}  Bb4 {[%clk 0:02:58]} 7. Bd2 {[%clk 0:02:53]}  O-O {[%clk 0:02:56]} 8. cxd5 {[%clk 0:02:50]}  Nxd5 {[%clk 0:02:56]} 9. Bd3 {[%clk 0:02:51]}  h6 {[%clk 0:02:55]} 10. O-O {[%clk 0:02:50]}  b6 {[%clk 0:02:54]} 11. Qe2 {[%clk 0:02:43]}  Bb7 {[%clk 0:02:51]} 12. Qe4 {[%clk 0:02:13]}  g6 {[%clk 0:02:41]} 13. Bxh6 {[%clk 0:02:09]}  Re8 {[%clk 0:02:16]} 14. Qe5 {[%clk 0:01:50]}  Qf6 {[%clk 0:02:08]} 15. Nxd5 {[%clk 0:01:37]}  Qxe5 {[%clk 0:02:07]} 16. Nxe5 {[%clk 0:01:35]}  Bxd5 {[%clk 0:02:05]} 17. Bb5 {[%clk 0:01:31]}  Rd8 {[%clk 0:01:53]} 18. Bg5 {[%clk 0:01:28]}  Rf8 {[%clk 0:01:46]} 19. Bh6 {[%clk 0:01:19]}  Rd8 {[%clk 0:01:46]} 20. a3 {[%clk 0:01:19]}  Bd6 {[%clk 0:01:46]} 21. Rac1 {[%clk 0:01:18]}  a6 {[%clk 0:01:42]} 22. Be2 {[%clk 0:01:13]}  Nd7 {[%clk 0:01:38]} 23. Nxd7 {[%clk 0:01:09]}  Rxd7 {[%clk 0:01:38]} 24. Rc3 {[%clk 0:01:05]}  Be7 {[%clk 0:01:29]} 25. Rfc1 {[%clk 0:00:58]}  Bf6 {[%clk 0:01:27]} 26. Be3 {[%clk 0:00:58]}  b5 {[%clk 0:01:07]} 27. Rc8+ {[%clk 0:00:42]}  Rxc8 {[%clk 0:01:05]} 28. Rxc8+ {[%clk 0:00:43]}  Kg7 {[%clk 0:01:04]} 29. b4 {[%clk 0:00:22]}  Bb7 {[%clk 0:00:50]} 30. Rb8 {[%clk 0:00:21]}  e5 {[%clk 0:00:46]} 31. dxe5 {[%clk 0:00:16]}  Bxe5 {[%clk 0:00:46]} 32. Re8 {[%clk 0:00:16]}  Bf6 {[%clk 0:00:39]} 33. f3 {[%clk 0:00:15]}  Bb2 {[%clk 0:00:37]} 34. Kf2 {[%clk 0:00:13]}  Bxa3 {[%clk 0:00:36]} 35. Bc5 {[%clk 0:00:12]}  Bb2 {[%clk 0:00:35]} 36. h4 {[%clk 0:00:10]}  Bd4+ {[%clk 0:00:34]} 37. Bxd4+ {[%clk 0:00:09]}  Rxd4 {[%clk 0:00:34]} 38. Rb8 {[%clk 0:00:10]}  Bd5 {[%clk 0:00:33]} 39. Rb6 {[%clk 0:00:10]}  Rxb4 {[%clk 0:00:32]} 40. Rxa6 {[%clk 0:00:10]}  Rb2 {[%clk 0:00:32]} 41. Ke3 {[%clk 0:00:08]}  Bc4 {[%clk 0:00:32]} 42. Bxc4 {[%clk 0:00:06]}  bxc4 {[%clk 0:00:32]} 43. g4 {[%clk 0:00:07]}  Rh2 {[%clk 0:00:32]} 44. Rc6 {[%clk 0:00:06]}  Rxh4 {[%clk 0:00:30]} 45. Rxc4 {[%clk 0:00:06]}  Rh1 {[%clk 0:00:29]} 46. Kf4 {[%clk 0:00:07]}  Ra1 {[%clk 0:00:29]} 47. Re4 {[%clk 0:00:07]}  Ra3 {[%clk 0:00:28]} 48. g5 {[%clk 0:00:07]}  Ra5 {[%clk 0:00:27]} 49. Kg4 {[%clk 0:00:08]}  Rb5 {[%clk 0:00:25]} 50. f4 {[%clk 0:00:08]}  Ra5 {[%clk 0:00:25]} 51. Re7 {[%clk 0:00:08]}  Rb5 {[%clk 0:00:24]} 52. Re3 {[%clk 0:00:08]}  Ra5 {[%clk 0:00:23]} 53. Re7 {[%clk 0:00:09]}  Rb5 {[%clk 0:00:23]} 54. Rc7 {[%clk 0:00:09]}  Ra5 {[%clk 0:00:22]} 55. Rd7 {[%clk 0:00:09]}  Rb5 {[%clk 0:00:23]} 56. Rc7 {[%clk 0:00:10]}  Ra5 {[%clk 0:00:23]} 57. Rd7 {[%clk 0:00:10]}  Rb5 {[%clk 0:00:23]} 58. Rc7 {[%clk 0:00:10]} 1/2-1/2


[Site "https://www.chess.com"]

[Event "Titled Tuesday Blitz December 20 Early 2022"]
[White "Salles, Louis"]
[Black "AttilaTurzo"]
[WhiteFideId "20641826"]
[WhiteElo "2287"]
[BlackElo "2578"]
[Result "0-1"]
[Round "09"]
[TimeControl "180+2"]
[Date "2022.12.20"]
[WhiteClock "0:01:26"]
[BlackClock "0:00:36"]

1. d4 {[%clk 0:02:59]}  Nf6 {[%clk 0:02:58]} 2. c4 {[%clk 0:02:59]}  e6 {[%clk 0:02:59]} 3. Nc3 {[%clk 0:02:59]}  Bb4 {[%clk 0:02:59]} 4. Qb3 {[%clk 0:03:00]}  Nc6 {[%clk 0:02:56]} 5. e3 {[%clk 0:03:01]}  O-O {[%clk 0:02:52]} 6. Bd3 {[%clk 0:03:01]}  d5 {[%clk 0:02:52]} 7. cxd5 {[%clk 0:03:01]}  exd5 {[%clk 0:02:49]} 8. Nf3 {[%clk 0:03:01]}  Re8 {[%clk 0:02:44]} 9. O-O {[%clk 0:03:00]}  Bf8 {[%clk 0:02:41]} 10. h3 {[%clk 0:02:59]}  Na5 {[%clk 0:02:34]} 11. Qc2 {[%clk 0:02:58]}  Nc6 {[%clk 0:02:29]} 12. a3 {[%clk 0:02:58]}  Ne7 {[%clk 0:02:28]} 13. b4 {[%clk 0:02:57]}  Ng6 {[%clk 0:02:28]} 14. Bb2 {[%clk 0:02:57]}  Bd6 {[%clk 0:02:07]} 15. Nb5 {[%clk 0:02:54]}  Ne4 {[%clk 0:02:04]} 16. Bxe4 {[%clk 0:02:49]}  dxe4 {[%clk 0:02:00]} 17. Nd2 {[%clk 0:02:50]}  f5 {[%clk 0:01:54]} 18. Rac1 {[%clk 0:02:49]}  c6 {[%clk 0:01:52]} 19. Nxd6 {[%clk 0:02:48]}  Qxd6 {[%clk 0:01:52]} 20. Nc4 {[%clk 0:02:48]}  Qe7 {[%clk 0:01:45]} 21. Ne5 {[%clk 0:02:49]}  Be6 {[%clk 0:01:39]} 22. Rfd1 {[%clk 0:02:45]}  Bd5 {[%clk 0:01:38]} 23. Qc5 {[%clk 0:02:43]}  Qg5 {[%clk 0:01:35]} 24. Nxg6 {[%clk 0:02:43]}  Qxg6 {[%clk 0:01:33]} 25. Qc3 {[%clk 0:02:14]}  Rf8 {[%clk 0:01:30]} 26. Qd2 {[%clk 0:02:12]}  Qh5 {[%clk 0:01:26]} 27. Rc5 {[%clk 0:02:10]}  g5 {[%clk 0:01:25]} 28. b5 {[%clk 0:02:06]}  f4 {[%clk 0:01:23]} 29. exf4 {[%clk 0:02:02]}  gxf4 {[%clk 0:01:22]} 30. Re1 {[%clk 0:02:02]}  Rae8 {[%clk 0:01:18]} 31. bxc6 {[%clk 0:01:56]}  bxc6 {[%clk 0:01:19]} 32. Qa5 {[%clk 0:01:55]}  f3 {[%clk 0:01:15]} 33. Qc7 {[%clk 0:01:54]}  Rf7 {[%clk 0:01:09]} 34. Qxc6 {[%clk 0:01:46]}  Rf5 {[%clk 0:00:43]} 35. Re3 {[%clk 0:01:27]}  Bxc6 {[%clk 0:00:40]} 36. Rxc6 {[%clk 0:01:27]}  Qg5 {[%clk 0:00:37]} 37. Bc1 {[%clk 0:01:26]}  Qxg2# {[%clk 0:00:36]} 0-1


[Site "https://www.chess.com"]

[Event "Titled Tuesday Blitz December 20 Early 2022"]
[White "Sam_ChessMood"]
[Black "Hsu, Li Yang"]
[BlackFideId "5800080"]
[WhiteElo "2882"]
[BlackElo "2427"]
[Result "1-0"]
[Round "09"]
[TimeControl "180+2"]
[Date "2022.12.20"]
[WhiteClock "0:00:17"]
[BlackClock "0:00:02"]

1. d4 {[%clk 0:02:55]}  Nf6 {[%clk 0:02:59]} 2. c4 {[%clk 0:02:54]}  c5 {[%clk 0:03:00]} 3. d5 {[%clk 0:02:54]}  b5 {[%clk 0:03:00]} 4. cxb5 {[%clk 0:02:51]}  a6 {[%clk 0:03:00]} 5. e3 {[%clk 0:02:51]}  Bb7 {[%clk 0:02:51]} 6. Nc3 {[%clk 0:02:50]}  e6 {[%clk 0:02:44]} 7. e4 {[%clk 0:02:33]}  exd5 {[%clk 0:02:33]} 8. exd5 {[%clk 0:02:32]}  g6 {[%clk 0:02:09]} 9. Bc4 {[%clk 0:02:13]}  Bg7 {[%clk 0:02:07]} 10. Qe2+ {[%clk 0:02:12]}  Qe7 {[%clk 0:01:58]} 11. Qxe7+ {[%clk 0:02:12]}  Kxe7 {[%clk 0:01:59]} 12. b6 {[%clk 0:01:55]}  d6 {[%clk 0:01:52]} 13. a4 {[%clk 0:01:53]}  a5 {[%clk 0:01:51]} 14. Bf4 {[%clk 0:01:38]}  Nbd7 {[%clk 0:01:50]} 15. Nb5 {[%clk 0:01:22]}  Ne8 {[%clk 0:01:48]} 16. O-O-O {[%clk 0:01:21]}  Nxb6 {[%clk 0:01:48]} 17. b3 {[%clk 0:01:13]}  Ba6 {[%clk 0:01:14]} 18. Nf3 {[%clk 0:01:07]}  Nxc4 {[%clk 0:01:04]} 19. bxc4 {[%clk 0:01:06]}  Bxb5 {[%clk 0:01:02]} 20. cxb5 {[%clk 0:01:03]}  Nf6 {[%clk 0:00:53]} 21. Nd2 {[%clk 0:00:44]}  Nh5 {[%clk 0:00:44]} 22. Bg5+ {[%clk 0:00:38]}  f6 {[%clk 0:00:29]} 23. Be3 {[%clk 0:00:35]}  f5 {[%clk 0:00:29]} 24. Nc4 {[%clk 0:00:34]}  Nf6 {[%clk 0:00:16]} 25. Rhe1 {[%clk 0:00:33]}  Ne4 {[%clk 0:00:09]} 26. f3 {[%clk 0:00:32]}  Nc3 {[%clk 0:00:08]} 27. Bd4+ {[%clk 0:00:31]}  Kf8 {[%clk 0:00:07]} 28. Bxc3 {[%clk 0:00:22]}  Bxc3 {[%clk 0:00:05]} 29. Re6 {[%clk 0:00:22]}  Be5 {[%clk 0:00:03]} 30. Nxe5 {[%clk 0:00:21]}  dxe5 {[%clk 0:00:04]} 31. Rxe5 {[%clk 0:00:22]}  Kf7 {[%clk 0:00:04]} 32. Kc2 {[%clk 0:00:22]}  Rhe8 {[%clk 0:00:03]} 33. f4 {[%clk 0:00:21]}  Red8 {[%clk 0:00:04]} 34. Kc3 {[%clk 0:00:21]}  c4 {[%clk 0:00:03]} 35. d6 {[%clk 0:00:21]}  Rac8 {[%clk 0:00:02]} 36. Rd4 {[%clk 0:00:20]}  Rd7 {[%clk 0:00:03]} 37. Rxc4 {[%clk 0:00:17]}  Rxc4+ {[%clk 0:00:03]} 38. Kxc4 {[%clk 0:00:18]}  Rxd6 {[%clk 0:00:03]} 39. Kc5 {[%clk 0:00:18]}  Rd2 {[%clk 0:00:03]} 40. b6 {[%clk 0:00:18]}  Rc2+ {[%clk 0:00:03]} 41. Kd6 {[%clk 0:00:17]}  Rxg2 {[%clk 0:00:03]} 42. b7 {[%clk 0:00:17]}  Rb2 {[%clk 0:00:02]} 43. Rb5 {[%clk 0:00:17]} 1-0


[Site "https://www.chess.com"]

[Event "Titled Tuesday Blitz December 20 Early 2022"]
[White "Sanan_Sjugirov"]
[Black "BahadirOzen"]
[WhiteElo "2933"]
[BlackElo "2853"]
[Result "0-1"]
[Round "09"]
[TimeControl "180+2"]
[Date "2022.12.20"]
[WhiteClock "0:00:04"]
[BlackClock "0:00:04"]

1. e4 {[%clk 0:03:00]}  d6 {[%clk 0:02:59]} 2. d4 {[%clk 0:03:00]}  Nf6 {[%clk 0:03:00]} 3. Nc3 {[%clk 0:03:01]}  e5 {[%clk 0:03:00]} 4. Nge2 {[%clk 0:03:00]}  c6 {[%clk 0:02:59]} 5. h3 {[%clk 0:02:27]}  b5 {[%clk 0:02:46]} 6. a3 {[%clk 0:02:02]}  h5 {[%clk 0:02:17]} 7. g3 {[%clk 0:02:01]}  Nbd7 {[%clk 0:02:14]} 8. Bg2 {[%clk 0:02:01]}  Bb7 {[%clk 0:02:15]} 9. O-O {[%clk 0:02:01]}  a5 {[%clk 0:02:15]} 10. Bg5 {[%clk 0:02:00]}  Be7 {[%clk 0:02:07]} 11. f4 {[%clk 0:01:53]}  b4 {[%clk 0:02:04]} 12. axb4 {[%clk 0:01:52]}  axb4 {[%clk 0:02:05]} 13. Rxa8 {[%clk 0:01:52]}  Qxa8 {[%clk 0:01:46]} 14. Nb1 {[%clk 0:01:52]}  Qa2 {[%clk 0:01:42]} 15. Nd2 {[%clk 0:01:50]}  Ba6 {[%clk 0:01:38]} 16. Nb3 {[%clk 0:01:21]}  Qxb2 {[%clk 0:01:34]} 17. fxe5 {[%clk 0:01:05]}  dxe5 {[%clk 0:01:33]} 18. Bc1 {[%clk 0:01:04]}  Qa2 {[%clk 0:01:26]} 19. d5 {[%clk 0:01:04]}  cxd5 {[%clk 0:01:19]} 20. exd5 {[%clk 0:01:05]}  Bd6 {[%clk 0:00:56]} 21. Be3 {[%clk 0:01:05]}  O-O {[%clk 0:00:55]} 22. Qd2 {[%clk 0:01:05]}  Bxe2 {[%clk 0:00:39]} 23. Ra1 {[%clk 0:00:56]}  Qb2 {[%clk 0:00:39]} 24. Qxe2 {[%clk 0:00:54]}  Rc8 {[%clk 0:00:39]} 25. Bc1 {[%clk 0:00:32]}  Qxc2 {[%clk 0:00:31]} 26. Qxc2 {[%clk 0:00:31]}  Rxc2 {[%clk 0:00:32]} 27. Be3 {[%clk 0:00:32]}  Rc3 {[%clk 0:00:31]} 28. Nd2 {[%clk 0:00:31]}  Rxe3 {[%clk 0:00:30]} 29. Nc4 {[%clk 0:00:31]}  Bc5 {[%clk 0:00:30]} 30. Nxe3 {[%clk 0:00:32]}  Bxe3+ {[%clk 0:00:31]} 31. Kf1 {[%clk 0:00:33]}  Bd4 {[%clk 0:00:30]} 32. Rb1 {[%clk 0:00:30]}  Bc3 {[%clk 0:00:29]} 33. Ke2 {[%clk 0:00:31]}  Kf8 {[%clk 0:00:28]} 34. Kd3 {[%clk 0:00:31]}  Ke7 {[%clk 0:00:28]} 35. Kc4 {[%clk 0:00:29]}  Ne8 {[%clk 0:00:27]} 36. Rd1 {[%clk 0:00:29]}  Nd6+ {[%clk 0:00:27]} 37. Kd3 {[%clk 0:00:29]}  Nc5+ {[%clk 0:00:27]} 38. Kc2 {[%clk 0:00:29]}  f5 {[%clk 0:00:28]} 39. g4 {[%clk 0:00:27]}  hxg4 {[%clk 0:00:27]} 40. hxg4 {[%clk 0:00:28]}  g6 {[%clk 0:00:28]} 41. Rh1 {[%clk 0:00:29]}  e4 {[%clk 0:00:23]} 42. gxf5 {[%clk 0:00:29]}  gxf5 {[%clk 0:00:24]} 43. Rh6 {[%clk 0:00:25]}  Nc4 {[%clk 0:00:21]} 44. Bh3 {[%clk 0:00:24]}  Na3+ {[%clk 0:00:19]} 45. Kd1 {[%clk 0:00:22]}  Be5 {[%clk 0:00:12]} 46. Bxf5 {[%clk 0:00:22]}  b3 {[%clk 0:00:10]} 47. Rb6 {[%clk 0:00:08]}  Nc4 {[%clk 0:00:11]} 48. Rb5 {[%clk 0:00:06]}  Kd6 {[%clk 0:00:10]} 49. Ke2 {[%clk 0:00:06]}  b2 {[%clk 0:00:06]} 50. Rb8 {[%clk 0:00:05]}  Na3 {[%clk 0:00:05]} 51. Rb6+ {[%clk 0:00:03]}  Kxd5 {[%clk 0:00:04]} 52. Bh7 {[%clk 0:00:03]}  b1=Q {[%clk 0:00:04]} 53. Bg8+ {[%clk 0:00:04]}  Kd4 {[%clk 0:00:04]} 0-1


[Site "https://www.chess.com"]

[Event "Titled Tuesday Blitz December 20 Early 2022"]
[White "Sapon, Ilia"]
[Black "Van der Nat, Nicholas"]
[WhiteFideId "13504746"]
[BlackFideId "14300427"]
[WhiteElo "2074"]
[BlackElo "2362"]
[Result "0-1"]
[Round "09"]
[TimeControl "180+2"]
[Date "2022.12.20"]
[WhiteClock "0:00:04"]
[BlackClock "0:00:02"]

1. e4 {[%clk 0:03:00]}  e5 {[%clk 0:02:59]} 2. Nf3 {[%clk 0:03:00]}  Nc6 {[%clk 0:02:59]} 3. Bb5 {[%clk 0:03:01]}  a6 {[%clk 0:02:59]} 4. Ba4 {[%clk 0:03:02]}  Nf6 {[%clk 0:02:59]} 5. d3 {[%clk 0:03:02]}  b5 {[%clk 0:02:52]} 6. Bb3 {[%clk 0:03:02]}  Be7 {[%clk 0:02:52]} 7. O-O {[%clk 0:03:00]}  O-O {[%clk 0:02:46]} 8. c3 {[%clk 0:03:00]}  d6 {[%clk 0:02:46]} 9. Re1 {[%clk 0:02:59]}  h6 {[%clk 0:02:42]} 10. Nbd2 {[%clk 0:02:58]}  Na5 {[%clk 0:02:38]} 11. Bc2 {[%clk 0:02:57]}  c5 {[%clk 0:02:39]} 12. Nf1 {[%clk 0:02:58]}  Nc6 {[%clk 0:02:33]} 13. a4 {[%clk 0:02:55]}  b4 {[%clk 0:02:25]} 14. Ng3 {[%clk 0:02:45]}  Re8 {[%clk 0:02:12]} 15. h3 {[%clk 0:02:45]}  Bf8 {[%clk 0:02:09]} 16. Bb3 {[%clk 0:02:16]}  Be6 {[%clk 0:02:01]} 17. Bxe6 {[%clk 0:02:16]}  Rxe6 {[%clk 0:01:53]} 18. Nh2 {[%clk 0:01:43]}  d5 {[%clk 0:01:39]} 19. Qf3 {[%clk 0:01:40]}  bxc3 {[%clk 0:01:36]} 20. bxc3 {[%clk 0:01:39]}  d4 {[%clk 0:01:35]} 21. c4 {[%clk 0:01:28]}  Nb4 {[%clk 0:01:33]} 22. Qe2 {[%clk 0:01:21]}  Rb8 {[%clk 0:01:29]} 23. Nf5 {[%clk 0:01:17]}  Kh7 {[%clk 0:01:27]} 24. Rf1 {[%clk 0:01:12]}  g6 {[%clk 0:01:20]} 25. Ng3 {[%clk 0:01:11]}  Bd6 {[%clk 0:00:58]} 26. Nh1 {[%clk 0:01:05]}  Nh5 {[%clk 0:00:50]} 27. g3 {[%clk 0:00:44]}  Re8 {[%clk 0:00:46]} 28. Ng4 {[%clk 0:00:40]}  Bf8 {[%clk 0:00:38]} 29. f4 {[%clk 0:00:23]}  exf4 {[%clk 0:00:34]} 30. Bxf4 {[%clk 0:00:20]}  Nxf4 {[%clk 0:00:34]} 31. Rxf4 {[%clk 0:00:18]}  f5 {[%clk 0:00:34]} 32. Nh2 {[%clk 0:00:15]}  Bd6 {[%clk 0:00:28]} 33. Rf2 {[%clk 0:00:10]}  Qg5 {[%clk 0:00:23]} 34. Nf3 {[%clk 0:00:08]}  Qe3 {[%clk 0:00:23]} 35. Rd1 {[%clk 0:00:04]}  fxe4 {[%clk 0:00:21]} 36. dxe4 {[%clk 0:00:04]}  Rxe4 {[%clk 0:00:21]} 37. Qf1 {[%clk 0:00:04]}  Rbe8 {[%clk 0:00:17]} 38. Kg2 {[%clk 0:00:02]}  R4e7 {[%clk 0:00:15]} 39. Re1 {[%clk 0:00:02]}  Qd3 {[%clk 0:00:15]} 40. Rxe7+ {[%clk 0:00:02]}  Rxe7 {[%clk 0:00:15]} 41. Nh4 {[%clk 0:00:02]}  Qxf1+ {[%clk 0:00:15]} 42. Rxf1 {[%clk 0:00:02]}  Kg7 {[%clk 0:00:15]} 43. Nf2 {[%clk 0:00:02]}  d3 {[%clk 0:00:14]} 44. Rd1 {[%clk 0:00:01]}  Re3 {[%clk 0:00:12]} 45. Ng4 {[%clk 0:00:01]}  Rxg3+ {[%clk 0:00:11]} 46. Kf2 {[%clk 0:00:01]}  Rxh3 {[%clk 0:00:10]} 47. Nf3 {[%clk 0:00:01]}  h5 {[%clk 0:00:10]} 48. Nge5 {[%clk 0:00:02]}  Bxe5 {[%clk 0:00:10]} 49. Nxe5 {[%clk 0:00:03]}  Rh2+ {[%clk 0:00:10]} 50. Kf3 {[%clk 0:00:03]}  Ra2 {[%clk 0:00:10]} 51. Ke4 {[%clk 0:00:03]}  Rxa4 {[%clk 0:00:10]} 52. Nxd3 {[%clk 0:00:03]}  Nxd3 {[%clk 0:00:09]} 53. Kxd3 {[%clk 0:00:04]}  Ra3+ {[%clk 0:00:10]} 54. Ke4 {[%clk 0:00:04]}  Rg3 {[%clk 0:00:07]} 55. Ke5 {[%clk 0:00:04]}  Rg5+ {[%clk 0:00:07]} 56. Ke6 {[%clk 0:00:04]}  h4 {[%clk 0:00:07]} 57. Rd7+ {[%clk 0:00:04]}  Kh6 {[%clk 0:00:07]} 58. Kf6 {[%clk 0:00:05]}  Rf5+ {[%clk 0:00:07]} 59. Ke6 {[%clk 0:00:05]}  h3 {[%clk 0:00:07]} 60. Rd3 {[%clk 0:00:05]}  Rh5 {[%clk 0:00:06]} 61. Kf6 {[%clk 0:00:06]}  h2 {[%clk 0:00:05]} 62. Rd8 {[%clk 0:00:02]}  Rf5+ {[%clk 0:00:04]} 63. Ke6 {[%clk 0:00:03]}  Kg7 {[%clk 0:00:03]} 64. Rd7+ {[%clk 0:00:03]}  Kh6 {[%clk 0:00:02]} 65. Rd1 {[%clk 0:00:03]}  Rh5 {[%clk 0:00:02]} 66. Rh1 {[%clk 0:00:04]}  Kg5 {[%clk 0:00:02]} 67. Ke5 {[%clk 0:00:04]}  Kg4+ {[%clk 0:00:02]} 0-1


[Site "https://www.chess.com"]

[Event "Titled Tuesday Blitz December 20 Early 2022"]
[White "Shironin, Daniil Aleks"]
[Black "fks_stal_mielec"]
[WhiteFideId "55812198"]
[WhiteElo "2115"]
[BlackElo "2284"]
[Result "0-1"]
[Round "09"]
[TimeControl "180+2"]
[Date "2022.12.20"]
[WhiteClock "0:00:37"]
[BlackClock "0:00:05"]

1. c4 {[%clk 0:03:00]}  e5 {[%clk 0:02:53]} 2. g3 {[%clk 0:02:59]}  Nf6 {[%clk 0:02:52]} 3. Bg2 {[%clk 0:03:00]}  Bc5 {[%clk 0:02:53]} 4. e3 {[%clk 0:02:58]}  Nc6 {[%clk 0:02:51]} 5. Ne2 {[%clk 0:02:58]}  d6 {[%clk 0:02:48]} 6. O-O {[%clk 0:02:56]}  O-O {[%clk 0:02:47]} 7. a3 {[%clk 0:02:53]}  a5 {[%clk 0:02:46]} 8. Nbc3 {[%clk 0:02:52]}  Bf5 {[%clk 0:02:41]} 9. d3 {[%clk 0:02:51]}  Bg6 {[%clk 0:02:39]} 10. f4 {[%clk 0:02:50]}  exf4 {[%clk 0:02:35]} 11. gxf4 {[%clk 0:02:49]}  Ng4 {[%clk 0:02:21]} 12. d4 {[%clk 0:02:41]}  Bb6 {[%clk 0:02:12]} 13. h3 {[%clk 0:02:40]}  Nf6 {[%clk 0:02:09]} 14. Ng3 {[%clk 0:02:39]}  h6 {[%clk 0:02:00]} 15. Bd2 {[%clk 0:02:14]}  Re8 {[%clk 0:02:00]} 16. Kh2 {[%clk 0:02:09]}  Qd7 {[%clk 0:01:45]} 17. d5 {[%clk 0:02:02]}  Ne7 {[%clk 0:01:41]} 18. e4 {[%clk 0:01:59]}  c6 {[%clk 0:01:27]} 19. e5 {[%clk 0:01:55]}  dxe5 {[%clk 0:01:19]} 20. fxe5 {[%clk 0:01:55]}  Nh7 {[%clk 0:01:19]} 21. d6 {[%clk 0:01:49]}  Nf5 {[%clk 0:01:16]} 22. Qg4 {[%clk 0:01:47]}  h5 {[%clk 0:00:58]} 23. Nxh5 {[%clk 0:01:38]}  Rxe5 {[%clk 0:00:53]} 24. Bf4 {[%clk 0:01:26]}  Re6 {[%clk 0:00:37]} 25. Ng3 {[%clk 0:01:18]}  Nf6 {[%clk 0:00:23]} 26. Qf3 {[%clk 0:01:11]}  Nxg3 {[%clk 0:00:23]} 27. Bxg3 {[%clk 0:01:05]}  Nh5 {[%clk 0:00:20]} 28. Qd3 {[%clk 0:00:58]}  Nxg3 {[%clk 0:00:19]} 29. Qxg3 {[%clk 0:00:57]}  Rxd6 {[%clk 0:00:18]} 30. Qg5 {[%clk 0:00:48]}  Rd2 {[%clk 0:00:16]} 31. Rae1 {[%clk 0:00:40]}  Bc7+ {[%clk 0:00:15]} 32. Kh1 {[%clk 0:00:39]}  Rxb2 {[%clk 0:00:11]} 33. Rg1 {[%clk 0:00:38]}  Re8 {[%clk 0:00:10]} 34. Be4 {[%clk 0:00:37]}  Rh2# {[%clk 0:00:05]} 0-1


[Site "https://www.chess.com"]

[Event "Titled Tuesday Blitz December 20 Early 2022"]
[White "Slovak_fighter2000"]
[Black "Chesca, Alexandru"]
[BlackFideId "1214438"]
[WhiteElo "2466"]
[BlackElo "1917"]
[Result "0-1"]
[Round "09"]
[TimeControl "180+2"]
[Date "2022.12.20"]
[WhiteClock "0:02:20"]
[BlackClock "0:02:31"]

1. d4 {[%clk 0:03:00]}  Nf6 {[%clk 0:02:59]} 2. Nf3 {[%clk 0:03:00]}  e6 {[%clk 0:02:59]} 3. Bf4 {[%clk 0:02:59]}  b6 {[%clk 0:02:58]} 4. e3 {[%clk 0:02:58]}  Bb7 {[%clk 0:02:59]} 5. Nbd2 {[%clk 0:02:56]}  d6 {[%clk 0:03:00]} 6. h3 {[%clk 0:02:51]}  Nbd7 {[%clk 0:03:00]} 7. a4 {[%clk 0:02:50]}  c5 {[%clk 0:03:00]} 8. c3 {[%clk 0:02:49]}  a6 {[%clk 0:02:59]} 9. Bd3 {[%clk 0:02:49]}  Be7 {[%clk 0:02:58]} 10. O-O {[%clk 0:02:48]}  cxd4 {[%clk 0:02:58]} 11. exd4 {[%clk 0:02:48]}  O-O {[%clk 0:02:59]} 12. Qe2 {[%clk 0:02:48]}  Re8 {[%clk 0:02:59]} 13. Rfe1 {[%clk 0:02:48]}  Bf8 {[%clk 0:02:58]} 14. Bh2 {[%clk 0:02:48]}  Qc7 {[%clk 0:02:59]} 15. Ng5 {[%clk 0:02:46]}  h6 {[%clk 0:02:59]} 16. Nge4 {[%clk 0:02:46]}  Nd5 {[%clk 0:02:49]} 17. Nc4 {[%clk 0:02:43]}  e5 {[%clk 0:02:43]} 18. dxe5 {[%clk 0:02:42]}  dxe5 {[%clk 0:02:43]} 19. Qc2 {[%clk 0:02:36]}  Qc6 {[%clk 0:02:37]} 20. Ned2 {[%clk 0:02:25]}  Nb4 {[%clk 0:02:31]} 21. Be4 {[%clk 0:02:20]}  Nxc2 {[%clk 0:02:30]} 22. Bxc6 {[%clk 0:02:20]}  Bxc6 {[%clk 0:02:31]} 0-1


[Site "https://www.chess.com"]